fUSD/lending_fUSD_20250416
["ID","MTS","AMOUNT","RATE_DAILY","PERIOD"]
[358167472,1744814866100,-500.0,0.00054794,120]
[358167473,1744814866128,-500.0,0.00054794,120]
[358167474,1744814866155,-500.0,0.00054794,120]
[358167475,1744814866180,-1734.75,0.00054794,120]
[358167476,1744814866207,-500.0,0.00054794,120]
[358167477,1744814866232,-500.0,0.00054794,120]
[358167478,1744814866258,-500.0,0.00054794,120]
[358167479,1744814866442,-500.0,0.00054794,120]
[358167480,1744814866472,-500.0,0.00054794,120]
[358167481,1744814866499,-500.0,0.00054794,120]
[358167482,1744814866526,-508.48628231,0.00054794,120]
[358167483,1744814866554,-500.0,0.00054794,120]
[358167484,1744814866580,-500.0,0.00054794,120]
[358167485,1744814866606,-1956.07,0.00054794,120]
[358167486,1744814866631,-500.0,0.00054794,120]
[358167487,1744814866658,-500.0,0.00054794,120]
[358167488,1744814866684,-500.0,0.00054794,120]
[358167489,1744814866710,-500.0,0.00054794,120]
[358167490,1744814866736,-500.0,0.00054794,120]
[358167491,1744814866761,-500.0,0.00054794,120]
[358167492,1744814866789,-1151.52,0.00054794,120]
[358167493,1744814866815,-500.0,0.00054794,120]
[358167494,1744814866842,-1094.55,0.00054794,120]
[358167495,1744814866869,-500.0,0.00054794,120]
[358167496,1744814866898,-500.0,0.00054794,120]
[358167497,1744814866927,-760.37,0.00054794,120]
[358167498,1744814866957,-500.0,0.00054794,120]
[358167499,1744814866985,-500.0,0.00054794,120]
[358167500,1744814867015,-500.0,0.00054794,120]
[358167501,1744814867049,-500.0,0.00054794,120]
[358167502,1744814867077,-1445.11,0.00054794,120]
[358167503,1744814867104,-500.0,0.00054794,120]
[358167504,1744814867132,-901.79,0.00054794,30]
[358167505,1744814867159,-2153.97,0.00054794,120]
[358167506,1744814867186,-608.5483821,0.00054794,120]
[358167507,1744814867211,-500.0,0.00054794,120]
[358167508,1744814867237,-518.9969764,0.00054794,120]
[358167509,1744814867262,-500.0,0.00054794,120]
[358167510,1744814867293,-509.82329373,0.00054794,120]
[358167511,1744814867318,-500.0,0.00054794,120]
[358167512,1744814867344,-500.0,0.00054794,120]
[358167513,1744814867370,-500.0,0.00054794,120]
[358167514,1744814867396,-500.0,0.00054794,120]
[358167515,1744814867422,-500.0,0.00054794,120]
[358167516,1744814867448,-362.35631332,0.00054794,120]
[358167517,1744814867476,-500.0,0.00054794,120]
[358167518,1744814867503,-500.0,0.00054794,120]
[358167519,1744814867536,-500.0,0.00054794,120]
[358167520,1744814867563,-500.0,0.00054794,120]
[358167521,1744814867588,-500.0,0.00054794,120]
[358167522,1744814867614,-500.0,0.00054794,120]
[358167523,1744814867639,-500.0,0.00054794,120]
[358167524,1744814867664,-500.0,0.00054794,120]
[358167525,1744814867690,-500.0,0.00054794,120]
[358167526,1744814867717,-537.62678555,0.00054794,120]
[358167527,1744814867743,-500.0,0.00054794,120]
[358167528,1744814867768,-537.48819406,0.00054794,120]
[358167529,1744814867797,-500.0,0.00054794,120]
[358167530,1744814867823,-500.0,0.00054794,120]
[358167531,1744814867849,-500.0,0.00054794,120]
[358167532,1744814867876,-500.0,0.00054794,120]
[358167533,1744814867902,-500.0,0.00054794,120]
[358167534,1744814867929,-500.0,0.00054794,120]
[358167535,1744814867954,-500.0,0.00054794,120]
[358167536,1744814867980,-1207.85,0.00054794,120]
[358167537,1744814868005,-500.0,0.00054794,120]
[358167538,1744814868036,-500.0,0.00054794,120]
[358167539,1744814868064,-500.0,0.00054794,120]
[358167540,1744814868092,-500.0,0.00054794,120]
[358167541,1744814868119,-528.90464195,0.00054794,120]
[358167542,1744814868145,-500.0,0.00054794,120]
[358167543,1744814868172,-500.0,0.00054794,120]
[358167544,1744814868199,-427.23769896,0.00054794,120]
[358167545,1744814868225,-500.0,0.00054794,120]
[358167546,1744814868252,-500.0,0.00054794,120]
[358167547,1744814868283,-500.0,0.00054794,120]
[358167548,1744814868311,-500.0,0.00054794,120]
[358167549,1744814868338,-500.0,0.00054794,120]
[358167550,1744814868366,-500.0,0.00054794,120]
[358167551,1744814868394,-500.0,0.00054794,120]
[358167552,1744814868421,-526.82344678,0.00054794,120]
[358167553,1744814868449,-500.0,0.00054794,120]
[358167554,1744814868479,-500.0,0.00054794,120]
[358167555,1744814868506,-500.0,0.00054794,120]
[358167556,1744814868541,-500.0,0.00054794,120]
[358167557,1744814868568,-500.0,0.00054794,120]
[358167558,1744814868598,-500.0,0.00054794,120]
[358167559,1744814868625,-500.0,0.00054794,120]
[358167560,1744814868653,-500.0,0.00054794,120]
[358167561,1744814868680,-500.0,0.00054794,120]
[358167562,1744814868708,-268.18799356,0.00054794,120]
[358167563,1744814868736,-500.0,0.00054794,120]
[358167564,1744814868763,-500.0,0.00054794,120]
[358167565,1744814868793,-500.0,0.00054794,120]
[358167566,1744814868820,-500.0,0.00054794,120]
[358167567,1744814868847,-510.20369504,0.00054794,120]
[358167568,1744814868874,-500.0,0.00054794,120]
[358167569,1744814868901,-500.0,0.00054794,120]
[358167570,1744814868928,-500.0,0.00054794,120]
[358167571,1744814868956,-1000.0,0.00054794,120]
[358167572,1744814868982,-500.0,0.00054794,120]
[358167573,1744814869010,-500.0,0.00054794,120]
[358167574,1744814869040,-500.0,0.00054794,120]
[358167575,1744814869069,-500.0,0.00054794,120]
[358167576,1744814869097,-500.0,0.00054794,120]
[358167577,1744814869125,-1092.84,0.00054794,120]
[358167578,1744814869152,-500.0,0.00054794,120]
[358167579,1744814869180,-500.0,0.00054794,120]
[358167580,1744814869209,-500.0,0.00054794,120]
[358167581,1744814869237,-1572.69,0.00054794,120]
[358167582,1744814869265,-500.0,0.00054794,120]
[358167583,1744814869296,-500.0,0.00054794,120]
[358167584,1744814869505,-500.0,0.00054794,120]
[358167585,1744814869537,-500.0,0.00054794,120]
[358167586,1744814869568,-1182.81,0.00054794,120]
[358167587,1744814869595,-500.0,0.00054794,120]
[358167588,1744814869622,-500.0,0.00054794,120]
[358167589,1744814869649,-500.0,0.00054794,120]
[358167590,1744814869677,-500.0,0.00054794,120]
[358167591,1744814869705,-500.0,0.00054794,120]
[358167592,1744814869733,-526.89331026,0.00054794,120]
[358167593,1744814869760,-500.0,0.00054794,30]
[358167594,1744814869788,-500.0,0.00054794,120]
[358167595,1744814869815,-500.0,0.00054794,120]
[358167596,1744814869844,-771.21,0.00054794,120]
[358167597,1744814869871,-500.0,0.00054794,120]
[358167598,1744814869898,-2192.06,0.00054794,120]
[358167599,1744814869924,-500.0,0.00054794,118]
[358167600,1744814869949,-531.93787669,0.00054794,120]
[358167601,1744814869975,-785.2,0.00054794,120]
[358167602,1744814870001,-500.0,0.00054794,120]
[358167603,1744814870027,-500.0,0.00054794,120]
[358167604,1744814870053,-500.0,0.00054794,120]
[358167605,1744814870079,-599.43,0.00054794,120]
[358167606,1744814870104,-500.0,0.00054794,120]
[358167607,1744814870130,-500.0,0.00054794,120]
[358167608,1744814870156,-500.0,0.00054794,120]
[358167609,1744814870183,-500.0,0.00054794,120]
[358167610,1744814870209,-500.0,0.00054794,120]
[358167611,1744814870236,-2358.99,0.00054794,120]
[358167612,1744814870262,-500.0,0.00054794,120]
[358167613,1744814870288,-628.59454419,0.00054794,120]
[358167614,1744814870315,-500.0,0.00054794,120]
[358167615,1744814870341,-1214.24,0.00054794,120]
[358167616,1744814870368,-500.0,0.00054794,120]
[358167617,1744814870395,-500.0,0.00054794,120]
[358167618,1744814870421,-524.05449635,0.00054794,120]
[358167619,1744814870447,-500.0,0.00054794,120]
[358167620,1744814870472,-1000.0,0.00054794,120]
[358167621,1744814870501,-1582.43,0.00054794,120]
[358167622,1744814870527,-500.0,0.00054794,120]
[358167623,1744814870557,-1034.66,0.00054794,120]
[358167624,1744814870583,-500.0,0.00054794,120]
[358167625,1744814870609,-1147.0,0.00054794,120]
[358167626,1744814870636,-500.0,0.00054794,120]
[358167627,1744814870661,-525.10225301,0.00054794,120]
[358167628,1744814870687,-363.63417567,0.00054794,120]
[358167629,1744814870716,-507.46,0.00054794,120]
[358167630,1744814870744,-500.0,0.00054794,120]
[358167631,1744814870770,-500.0,0.00054794,120]
[358167632,1744814870795,-536.90858872,0.00054794,120]
[358167633,1744814870821,-500.0,0.00054794,120]
[358167634,1744814870847,-500.0,0.00054794,120]
[358167635,1744814870874,-1450.41,0.00054794,120]
[358167636,1744814870899,-340.21140189,0.00054794,120]
[358167637,1744814870925,-500.0,0.00054794,120]
[358167638,1744814870953,-500.0,0.00054794,120]
[358167639,1744814870979,-535.22367125,0.00054794,120]
[358167640,1744814871004,-500.0,0.00054794,120]
[358167641,1744814871032,-500.0,0.00054794,120]
[358167642,1744814871058,-584.34234437,0.00054794,120]
[358167643,1744814871085,-500.0,0.00054794,120]
[358167644,1744814871112,-500.0,0.00054794,120]
[358167645,1744814871138,-526.50462011,0.00054794,120]
[358167646,1744814871164,-511.52203148,0.00054794,120]
[358167647,1744814871191,-821.79,0.00054794,120]
[358167648,1744814871217,-500.0,0.00054794,120]
[358167649,1744814871243,-500.0,0.00054794,120]
[358167650,1744814871271,-1508.18,0.00054794,120]
[358167651,1744814871299,-500.0,0.00054794,120]
[358167652,1744814871325,-1198.95,0.00054794,120]
[358167653,1744814871352,-500.0,0.00054794,120]
[358167654,1744814871379,-1287.91,0.00054794,120]
[358167655,1744814871405,-500.0,0.00054794,120]
[358167656,1744814871431,-500.0,0.00054794,120]
[358167657,1744814871456,-500.0,0.00054794,120]
[358167658,1744814871485,-500.0,0.00054794,120]
[358167659,1744814871513,-500.0,0.00054794,120]
[358167660,1744814871539,-500.0,0.00054794,120]
[358167661,1744814871568,-500.0,0.00054794,120]
[358167662,1744814871594,-500.0,0.00054794,120]
[358167663,1744814871620,-500.0,0.00054794,120]
[358167664,1744814871647,-500.0,0.00054794,120]
[358167665,1744814871673,-500.0,0.00054794,120]
[358167666,1744814871701,-535.92,0.00054794,120]
[358167667,1744814871728,-500.0,0.00054794,120]
[358167668,1744814871755,-500.0,0.00054794,120]
[358167669,1744814871782,-523.75879236,0.00054794,120]
[358167670,1744814871808,-500.0,0.00054794,120]
[358167671,1744814871835,-500.0,0.00054794,120]
[358167672,1744814871860,-538.52963183,0.00054794,120]
[358167673,1744814871886,-500.0,0.00054794,120]
[358167674,1744814871912,-500.0,0.00054794,120]
[358167675,1744814871939,-565.11798232,0.00054794,120]
[358167676,1744814871965,-381.48867766,0.00054794,120]
[358167677,1744814871992,-500.0,0.00054794,120]
[358167678,1744814872019,-500.0,0.00054794,120]
[358167679,1744814872046,-844.87,0.00054794,120]
[358167680,1744814872073,-1104.33,0.00054794,120]
[358167681,1744814872100,-500.0,0.00054794,120]
[358167682,1744814872127,-500.0,0.00054794,120]
[358167683,1744814872153,-500.0,0.00054794,120]
[358167684,1744814872180,-943.65,0.00054794,120]
[358167685,1744814872209,-500.0,0.00054794,120]
[358167686,1744814872240,-500.0,0.00054794,120]
[358167687,1744814872268,-527.24805369,0.00054794,120]
[358167688,1744814872301,-500.0,0.00054794,120]
[358167689,1744814872507,-649.56230506,0.00054794,120]
[358167690,1744814872540,-1142.18,0.00054794,120]
[358167691,1744814872776,-500.0,0.00054794,120]
[358167692,1744814872806,-500.0,0.00054794,120]
[358167693,1744814872833,-500.0,0.00054794,120]
[358167694,1744814872860,-500.0,0.00054794,120]
[358167695,1744814872888,-500.0,0.00054794,120]
[358167696,1744814872915,-618.82315526,0.00054794,120]
[358167697,1744814872943,-777.56,0.00054794,120]
[358167698,1744814872971,-513.17695566,0.00054794,120]
[358167699,1744814872999,-500.0,0.00054794,120]
[358167700,1744814873026,-325.28318062,0.00054794,120]
[358167701,1744814873055,-500.0,0.00054794,120]
[358167702,1744814873081,-195.07938905,0.00054794,120]
[358167703,1744814873107,-523.56119344,0.00054794,120]
[358167704,1744814873135,-500.0,0.00054794,120]
[358167705,1744814873162,-500.0,0.00054794,120]
[358167706,1744814873187,-500.0,0.00054794,120]
[358167707,1744814873214,-500.0,0.00054794,120]
[358167708,1744814873240,-500.0,0.00054794,120]
[358167709,1744814873268,-500.0,0.00054794,120]
[358167710,1744814873295,-195.87355642,0.00054794,120]
[358167711,1744814873321,-500.0,0.00054794,120]
[358167712,1744814873348,-500.0,0.00054794,120]
[358167713,1744814873375,-500.0,0.00054794,120]
[358167714,1744814873402,-500.0,0.00054794,120]
[358167715,1744814873429,-505.9,0.00054794,120]
[358167716,1744814873456,-500.0,0.00054794,120]
[358167717,1744814873485,-500.0,0.00054794,120]
[358167718,1744814873511,-500.0,0.00054794,120]
[358167719,1744814873538,-500.0,0.00054794,120]
[358167720,1744814873564,-536.51188344,0.00054794,30]
[358167721,1744814873591,-500.0,0.00054794,120]
[358167722,1744814873616,-500.0,0.00054794,120]
[358167723,1744814873647,-500.0,0.00054794,120]
[358167724,1744814873672,-500.0,0.00054794,120]
[358167725,1744814873697,-500.0,0.00054794,120]
[358167726,1744814873724,-500.0,0.00054794,120]
[358167727,1744814873749,-500.0,0.00054794,120]
[358167728,1744814873779,-500.0,0.00054794,120]
[358167729,1744814873806,-1834.3,0.00054794,120]
[358167730,1744814873833,-500.0,0.00054794,120]
[358167731,1744814873859,-500.0,0.00054794,120]
[358167732,1744814873885,-500.0,0.00054794,120]
[358167733,1744814873912,-500.0,0.00054794,120]
[358167734,1744814873938,-502.01304059,0.00054794,120]
[358167735,1744814873964,-585.16756232,0.00054794,120]
[358167736,1744814873990,-500.0,0.00054794,120]
[358167737,1744814874017,-500.0,0.00054794,120]
[358167738,1744814874043,-500.0,0.00054794,120]
[358167739,1744814874069,-500.0,0.00054794,120]
[358167740,1744814874095,-500.0,0.00054794,120]
[358167741,1744814874122,-500.0,0.00054794,120]
[358167742,1744814874150,-1336.53,0.00054794,120]
[358167743,1744814874176,-500.0,0.00054794,120]
[358167744,1744814874204,-500.0,0.00054794,120]
[358167745,1744814874232,-548.6,0.00054794,120]
[358167746,1744814874259,-500.0,0.00054794,120]
[358167747,1744814874286,-500.0,0.00054794,120]
[358167748,1744814874313,-500.0,0.00054794,120]
[358167749,1744814874340,-500.0,0.00054794,120]
[358167750,1744814874367,-500.0,0.00054794,120]
[358167751,1744814874394,-566.50820384,0.00054794,120]
[358167752,1744814874421,-576.32072989,0.00054794,120]
[358167753,1744814874450,-500.0,0.00054794,120]
[358167754,1744814874482,-500.0,0.00054794,120]
[358167755,1744814874510,-500.0,0.00054794,120]
[358167756,1744814874539,-511.77897425,0.00054794,120]
[358167757,1744814874568,-1257.13,0.00054794,120]
[358167758,1744814874595,-500.0,0.00054794,120]
[358167759,1744814874621,-504.21,0.00054794,120]
[358167760,1744814874647,-864.66,0.00054794,120]
[358167761,1744814874672,-500.0,0.00054794,120]
[358167762,1744814874697,-500.0,0.00054794,120]
[358167763,1744814874724,-585.8295864,0.00054794,120]
[358167764,1744814874750,-500.0,0.00054794,120]
[358167765,1744814874777,-500.0,0.00054794,120]
[358167766,1744814874804,-500.0,0.00054794,120]
[358167767,1744814874830,-500.0,0.00054794,120]
[358167768,1744814874855,-500.0,0.00054794,120]
[358167769,1744814874880,-500.0,0.00054794,120]
[358167770,1744814874906,-500.0,0.00054794,120]
[358167771,1744814874932,-597.6813619,0.00054794,120]
[358167772,1744814874957,-500.0,0.00054794,120]
[358167773,1744814874982,-507.17356614,0.00054794,120]
[358167774,1744814875009,-500.0,0.00054794,120]
[358167775,1744814875034,-500.0,0.00054794,120]
[358167776,1744814875059,-500.0,0.00054794,120]
[358167777,1744814875084,-500.0,0.00054794,120]
[358167778,1744814875110,-500.0,0.00054794,120]
[358167779,1744814875135,-500.0,0.00054794,120]
[358167780,1744814875161,-500.0,0.00054794,120]
[358167781,1744814875187,-500.0,0.00054794,120]
[358167782,1744814875213,-500.0,0.00054794,120]
[358167783,1744814875240,-525.38692825,0.00054794,120]
[358167784,1744814875265,-1600.01,0.00054794,120]
[358167785,1744814875291,-500.0,0.00054794,120]
[358167786,1744814875317,-500.0,0.00054794,120]
[358167787,1744814875342,-507.47700455,0.00054794,120]
[358167788,1744814875368,-500.0,0.00054794,120]
[358167789,1744814875395,-500.0,0.00054794,120]
[358167790,1744814875423,-500.0,0.00054794,120]
[358167791,1744814875450,-500.0,0.00054794,120]
[358167792,1744814875478,-500.0,0.00054794,120]
[358167793,1744814875690,-500.0,0.00054794,120]
[358167794,1744814875722,-500.0,0.00054794,120]
[358167795,1744814875750,-500.0,0.00054794,120]
[358167796,1744814875778,-500.0,0.00054794,120]
[358167797,1744814875806,-500.0,0.00054794,120]
[358167798,1744814875833,-500.0,0.00054794,120]
[358167799,1744814875859,-522.26590127,0.00054794,120]
[358167800,1744814875886,-500.0,0.00054794,120]
[358167801,1744814875911,-500.0,0.00054794,120]
[358167802,1744814875940,-631.97,0.00054794,120]
[358167803,1744814875965,-500.0,0.00054794,120]
[358167804,1744814875990,-500.0,0.00054794,120]
[358167805,1744814876016,-529.45689084,0.00054794,120]
[358167806,1744814876042,-1119.49,0.00054794,120]
[358167807,1744814876067,-526.18388163,0.00054794,120]
[358167808,1744814876093,-500.0,0.00054794,120]
[358167809,1744814876118,-500.0,0.00054794,120]
[358167810,1744814876143,-521.13201683,0.00054794,120]
[358167811,1744814876169,-500.0,0.00054794,120]
[358167812,1744814876195,-577.79268953,0.00054794,120]
[358167813,1744814876221,-543.27066446,0.00054794,120]
[358167814,1744814876248,-500.0,0.00054794,120]
[358167815,1744814876275,-500.0,0.00054794,120]
[358167816,1744814876303,-500.0,0.00054794,120]
[358167817,1744814876330,-500.0,0.00054794,120]
[358167818,1744814876357,-1164.47,0.00054794,120]
[358167819,1744814876384,-500.0,0.00054794,120]
[358167820,1744814876410,-1165.25,0.00054794,120]
[358167821,1744814876436,-500.0,0.00054794,120]
[358167822,1744814876462,-500.0,0.00054794,120]
[358167823,1744814876492,-500.0,0.00054794,120]
[358167824,1744814876518,-500.0,0.00054794,120]
[358167825,1744814876543,-500.0,0.00054794,30]
[358167826,1744814876568,-500.0,0.00054794,120]
[358167827,1744814876592,-500.0,0.00054794,120]
[358167828,1744814876617,-1423.77,0.00054794,120]
[358167829,1744814876640,-500.0,0.00054794,120]
[358167830,1744814876666,-500.0,0.00054794,120]
[358167831,1744814876692,-534.2405525,0.00054794,120]
[358167832,1744814876722,-500.0,0.00054794,120]
[358167833,1744814876749,-500.0,0.00054794,120]
[358167834,1744814876775,-500.0,0.00054794,120]
[358167835,1744814876804,-500.0,0.00054794,120]
[358167836,1744814876831,-500.0,0.00054794,120]
[358167837,1744814876858,-500.0,0.00054794,120]
[358167838,1744814876886,-500.0,0.00054794,120]
[358167839,1744814876913,-500.0,0.00054794,120]
[358167840,1744814876940,-500.0,0.00054794,120]
[358167841,1744814876966,-212.63414259,0.00054794,120]
[358167842,1744814876992,-500.0,0.00054794,120]
[358167843,1744814877018,-500.0,0.00054794,120]
[358167844,1744814877048,-500.0,0.00054794,120]
[358167845,1744814877074,-500.0,0.00054794,120]
[358167846,1744814877100,-500.0,0.00054794,120]
[358167847,1744814877125,-2157.23,0.00054794,120]
[358167848,1744814877151,-500.0,0.00054794,120]
[358167849,1744814877177,-500.0,0.00054794,120]
[358167850,1744814877202,-500.0,0.00054794,120]
[358167851,1744814877228,-526.88997341,0.00054794,120]
[358167852,1744814877255,-2143.66,0.00054794,120]
[358167853,1744814877281,-500.0,0.00054794,120]
[358167854,1744814877309,-500.0,0.00054794,120]
[358167855,1744814877337,-500.0,0.00054794,120]
[358167856,1744814877364,-2137.01,0.00054794,120]
[358167857,1744814877391,-1583.1,0.00054794,120]
[358167858,1744814877418,-561.3939832,0.00054794,120]
[358167859,1744814877443,-500.0,0.00054794,120]
[358167860,1744814877470,-564.29273262,0.00054794,120]
[358167861,1744814877497,-419.90248763,0.00054794,120]
[358167862,1744814877523,-500.0,0.00054794,120]
[358167863,1744814877556,-500.0,0.00054794,120]
[358167864,1744814877582,-500.0,0.00054794,120]
[358167865,1744814877608,-500.0,0.00054794,120]
[358167866,1744814877634,-500.0,0.00054794,120]
[358167867,1744814877661,-1217.27,0.00054794,120]
[358167868,1744814877688,-500.0,0.00054794,120]
[358167869,1744814877716,-500.0,0.00054794,120]
[358167870,1744814877743,-500.0,0.00054794,120]
[358167871,1744814877771,-452.48541558,0.00054794,120]
[358167872,1744814877797,-500.0,0.00054794,120]
[358167873,1744814877824,-500.0,0.00054794,120]
[358167874,1744814877851,-500.0,0.00054794,120]
[358167875,1744814877878,-500.0,0.00054794,120]
[358167876,1744814877905,-1362.34,0.00054794,120]
[358167877,1744814877933,-500.0,0.00054794,120]
[358167878,1744814877961,-744.68,0.00054794,120]
[358167879,1744814877989,-559.26625633,0.00054794,120]
[358167880,1744814878016,-500.0,0.00054794,120]
[358167881,1744814878044,-500.0,0.00054794,120]
[358167882,1744814878072,-500.0,0.00054794,120]
[358167883,1744814878662,332.60791905,0.0005,120]
[358167884,1744814878758,150.0,0.00053717,60]
[358167885,1744814878804,500.0,0.00054794,120]
[358167886,1744814878862,150.0,0.00053852,120]
[358167887,1744814878896,344.91441206,0.0005,120]
[358167888,1744814878952,150.0,0.00053972,32]
[358167889,1744814879033,357.6762453,0.0005,120]
[358167890,1744814879081,150.0,0.0005399,120]
[358167891,1744814879143,150.0,0.00054,54]
[358167892,1744814879175,370.91026638,0.0005,120]
[358167893,1744814879232,150.0,0.00054246,120]
[358167894,1744814879401,151.0,0.0005,120]
[358167895,1744814879433,384.63394623,0.0005,120]
[358167896,1744814879470,150.0,0.00054273,120]
[358167897,1744814879545,151.0,0.0005,120]
[358167898,1744814879579,150.0,0.00054301,120]
[358167899,1744814879612,151.0,0.0005,120]
[358167900,1744814879648,500.0,0.00054,120]
[358167901,1744814879710,151.0,0.0005,120]
[358167902,1744814879742,150.0,0.00054328,120]
[358167903,1744814879775,151.0,0.0005,120]
[358167904,1744814879840,151.0,0.0005,120]
[358167905,1744814879873,500.0,0.00054,120]
[358167906,1744814879905,150.0,0.00054356,120]
[358167907,1744814879947,150.0,0.00054383,120]
[358167908,1744814879979,600.0,0.0005,120]
[358167909,1744814880021,311.38,0.00054,120]
[358167910,1744814880691,500.0,0.00054794,120]
[358167911,1744814880832,1000.0,0.00054794,120]
[358167912,1744814880961,562.75,0.00054794,120]
[358167916,1744814900657,-153.0,0.00043288,30]
[358167917,1744814900690,-153.0,0.00043288,30]
[358167918,1744814900718,-153.0,0.00043288,30]
[358167919,1744814900745,-153.0,0.00043288,30]
[358167920,1744814900779,-151.0,0.0005,120]
[358167921,1744814900806,-151.0,0.0005,120]
[358167922,1744814900832,-219.595104,0.0005,120]
[358167923,1744814900861,-336418.30756598,0.00052,120]
[358167924,1744814900888,-210.0,0.0005306,30]
[358167925,1744814900914,-150.1,0.00054521,30]
[358167926,1744814900939,-150.1,0.00054658,30]
[358167927,1744814900967,-500.0,0.00054794,120]
[358167928,1744814900993,-500.0,0.00054794,120]
[358167929,1744814901019,-500.0,0.00054794,120]
[358167930,1744814901044,-500.0,0.00054794,120]
[358167931,1744814901072,-500.0,0.00054794,118]
[358167932,1744814901098,-1016.72,0.00054794,120]
[358167933,1744814901126,-500.0,0.00054794,120]
[358167934,1744814901152,-500.0,0.00054794,120]
[358167935,1744814901178,-500.0,0.00054794,120]
[358167936,1744814901204,-500.0,0.00054794,120]
[358167937,1744814901231,-194.07639685,0.00054794,120]
[358167938,1744814901259,-500.0,0.00054794,120]
[358167939,1744814901285,-520.67036052,0.00054794,120]
[358167940,1744814901312,-500.0,0.00054794,120]
[358167941,1744814901338,-500.0,0.00054794,120]
[358167942,1744814901364,-500.0,0.00054794,120]
[358167943,1744814901390,-241.32252213,0.00054794,120]
[358167944,1744814901415,-539.66445658,0.00054794,120]
[358167945,1744814901441,-995.69,0.00054794,120]
[358167946,1744814901466,-500.0,0.00054794,120]
[358167947,1744814901493,-500.0,0.00054794,120]
[358167948,1744814901519,-500.0,0.00054794,120]
[358167949,1744814901545,-500.0,0.00054794,120]
[358167950,1744814901574,-500.0,0.00054794,120]
[358167951,1744814901599,-500.0,0.00054794,120]
[358167952,1744814901624,-242.95093361,0.00054794,120]
[358167953,1744814901651,-500.0,0.00054794,120]
[358167954,1744814901676,-574.46,0.00054794,120]
[358167955,1744814901701,-554.94371535,0.00054794,120]
[358167956,1744814901729,-500.0,0.00054794,120]
[358167957,1744814901755,-991.54,0.00054794,120]
[358167958,1744814901780,-183.95961187,0.00054795,120]
[358167959,1744814901807,-150.24778386,0.00054795,120]
[358167960,1744814901831,-2759.31648748,0.000548,30]
[358167961,1744814901855,-1250.11,0.00054821,120]
[358167962,1744814901880,-1250.11,0.00054821,120]
[358167963,1744814901904,-1250.11,0.00054821,120]
[358167964,1744814901929,-1250.11,0.00054821,120]
[358167965,1744814901954,-1250.11,0.00054821,120]
[358167966,1744814901980,-1250.11,0.00054821,120]
[358167967,1744814902005,-1250.11,0.00054821,120]
[358167968,1744814902031,-1250.11,0.00054821,120]
[358167969,1744814902057,-1250.11,0.00054821,120]
[358167970,1744814902082,-1250.11,0.00054821,120]
[358167971,1744814902109,-1250.11,0.00054821,120]
[358167972,1744814902135,-1250.11,0.00054821,120]
[358167973,1744814902160,-1250.11,0.00054821,120]
[358167974,1744814902185,-1250.11,0.00054821,120]